Workbook

Sheet 表格範本
A1: ####(年度)銷售內容分析表
A2: 案件編號 | B2: 負責業務 | C2: 合約客戶 | D2: 專案名稱 | E2: 預計得標或是取得訂單時間 | F2: 預計交貨時間 | G2: 預計驗收時間 | H2: 信心 % | I2: 全案銷售總Rev.(A) | J2: 外購成本(B) | K2: 內部成本(C) | L2: 保固成本(D) | M2: 全案銷售總GP(A-B-C-D) | N2: 可認列Rev. | O2: 可認列GP | P2: Sales認列金額
P4: 認列Revenue | Q4: 認列外購成本 | R4: 認列內部成本 | S4: 認列GP
A5: 1月
P7: =SUM(N7) -> 0 | S7: =SUM(O7) -> 0
A8: 1月小計 | P8: =SUM(P6:P7) -> 0 | Q8: =SUM(Q6:Q7) -> 0 | R8: =SUM(R6:R7) -> 0 | S8: =SUM(S6:S7) -> 0
A9: 2月
A14: 2月小計 | P14: =SUM(P10:P13) -> 0 | Q14: 0 | R14: 0 | S14: 0
A15: 3月
A16: OTC11111090014 | B16: 洪瑞卿 | C16: 台新國際商業銀行股份有限公司 | D16: *台新HDS 3年維護案 | E16: 2012-02-20 | G16: 2012-02-20 | I16: 32857 | M16: 16429 | N16: 12222 | O16: 6111 | P16: 3000 | S16: 1200
A17: OTC11111110008 | B17: 洪瑞卿 | C17: 上海商業儲蓄銀行股份有限公司 | D17: *海銀HDS NSC55維護(第一階段) | E17: 2012-02-29 | G17: 2012-03-02 | I17: 250 | M17: 25 | N17: 250 | O17: 25 | P17: 63 | S17: 6
A18: OTC11110030007 | B18: 洪瑞卿 | C18: 上海商業儲蓄銀行股份有限公司 | D18: *NCS55擴充(VM專案) | E18: 2012-02-28 | G18: 2012-02-28 | I18: 1500 | M18: 675 | N18: 1500 | O18: 675 | P18: 1500 | S18: 675
A19: OTC11110100006 | B19: 洪瑞卿 | C19: 上海商業儲蓄銀行股份有限公司 | D19: *機房搬遷 | E19: 2012-02-28 | G19: 2012-02-28 | I19: 150 | M19: 135 | N19: 150 | O19: 135 | P19: 150 | S19: 135
A20: OKC11210030014 | B20: 林平三 | C20: 宜誠資訊股份有限公司 | D20: *移民署入出境管理局 | E20: 2012-03-01 | G20: 2012-03-30 | I20: 366 | M20: 55 | N20: 366 | O20: 55 | P20: 366 | S20: 55
A21: OTC11111030011 | B21: 林平三 | C21: 元鎂科技股份有限公司 | D21: *中國信託7100換購 | E21: 2012-03-15 | G21: 2012-03-30 | I21: 336 | M21: 77 | N21: 336 | O21: 77 | P21: 336 | S21: 77
A26: 3月小計 | P26: =SUM(P16:P25) -> 5415 | Q26: 0 | R26: 0 | S26: 2148
A27: 4月
A28: OTC11112010008 | B28: 葉俊毅 | C28: 碩沛科技 | D28: *IBM x3650M3 Server 銷售 | E28: 2012-03-30 | G28: 2012-04-30 | I28: 360 | M28: 36 | N28: 360 | O28: 36 | P28: 360 | S28: 36
A29: OTC11111100002 | B29: 黎育誠 | C29: 吉恩立數位科技股份有限公司 | D29: 網頁應用程式防火牆採購案 | E29: 2012-03-30 | G29: 2012-04-30 | I29: 3000 | M29: 300 | N29: 3000 | O29: 300 | P29: 3000 | S29: 300
A30: OTC11111090014 | B30: 洪瑞卿 | C30: 台新國際商業銀行股份有限公司 | D30: *台新HDS 3年維護案 | E30: 2012-02-20 | G30: 2012-02-20 | I30: 32857 | M30: 16429 | N30: 12222 | O30: 6111 | P30: 1111 | S30: 556
A33: 4月小計 | P33: =SUM(P28:P32) -> 4471 | Q33: =SUM(Q28:Q32) -> 0 | R33: 0 | S33: 892
A34: 5月
A35: OTC11112010001 | B35: 林平三 | C35: 基嘉科技股份有限公司 | D35: *泰山職訓中心教學器材採購 | E35: 2012-05-01 | G35: 2012-05-31 | I35: 720 | M35: 144 | N35: 720 | O35: 144 | P35: 720 | S35: 144
A36: OKC11210070007 | B36: 張凱 | C36: 群益金融集團 | D36: *資訊安全強化案 | E36: 2012-04-30 | G36: 2012-05-31 | I36: 7000 | M36: 700 | N36: 7000 | O36: 700 | P36: 7000 | S36: 700
A37: OTC11111090014 | B37: 洪瑞卿 | C37: 台新國際商業銀行股份有限公司 | D37: *台新HDS 3年維護案 | E37: 2012-02-20 | G37: 2012-02-20 | I37: 32857 | M37: 16429 | N37: 12222 | O37: 6111 | P37: 1111 | S37: 556
A39: 5月小計 | P39: =SUM(P35:P38) -> 8831 | Q39: =SUM(Q35:Q38) -> 0 | R39: =SUM(R35:R38) -> 0 | S39: =SUM(S35:S38) -> 1400
A40: 6月
A41: OTC11111110008 | B41: 洪瑞卿 | C41: 上海商業儲蓄銀行股份有限公司 | D41: *海銀HDS NSC55維護(第一階段) | E41: 2012-02-29 | G41: 2012-03-02 | I41: 250 | M41: 25 | N41: 250 | O41: 25 | P41: 63 | S41: 6
A42: OTC11111060005 | B42: 洪瑞卿 | C42: 經濟部 | D42: 政府電子化 | E42: 2012-03-12 | G42: 2012-06-20 | I42: 9000 | M42: 900 | N42: 9000 | O42: 900 | P42: 9000 | S42: 900
A43: OTC11112020003 | B43: 林平三 | C43: 基嘉科技股份有限公司 | D43: *宜蘭縣政府公文影像備份 | E43: 2012-06-29 | G43: 2012-06-29 | I43: 318 | M43: 64 | N43: 318 | O43: 64 | P43: 318 | S43: 64
A44: OTC11112020004 | B44: 林平三 | C44: 美得康科技股份有限公司 | D44: *榮總醫療影像備份 | E44: 2012-06-29 | G44: 2012-06-29 | I44: 802 | M44: 200 | N44: 802 | O44: 200 | P44: 802 | S44: 200
A45: OTC11111010006 | B45: 周睿騰 | C45: 彰化銀行國際營運處 | D45: 伺服器自我安全防護系統 | E45: 2012-06-30 | G45: 2012-06-30 | I45: 3500 | M45: 350 | N45: 3500 | O45: 350 | P45: 3500 | S45: 350
A46: OTC11111010019 | B46: 周睿騰 | C46: 台北自來水事業處 | D46: *虛擬化環境建置 | E46: 2012-04-30 | G46: 2012-06-30 | I46: 2000 | M46: 200 | N46: 2000 | O46: 200 | P46: 2000 | S46: 200
A47: OTC11111090014 | B47: 洪瑞卿 | C47: 台新國際商業銀行股份有限公司 | D47: *台新HDS 3年維護案 | E47: 2012-02-20 | G47: 2012-02-20 | I47: 32857 | M47: 16429 | N47: 12222 | O47: 6111 | P47: 1111 | S47: 556
A48: OTC11111010003 | B48: 尚榮芬 | C48: 中華電信股份有限公司 台灣北區電信分公司 | D48: CHT-N Billing CCBS 磁碟機案 | E48: 2012-03-31 | G48: 2012-03-31 | I48: 14000 | M48: 2100 | N48: 14000 | O48: 2100 | P48: 14000 | S48: 2100
A50: 6月小計 | P50: =SUM(P41:P49) -> 30794 | Q50: =SUM(Q41:Q49) -> 0 | R50: =SUM(R41:R49) -> 0 | S50: =SUM(S41:S49) -> 4376
A51: 7月
A52: OTC11111090014 | B52: 洪瑞卿 | C52: 台新國際商業銀行股份有限公司 | D52: *台新HDS 3年維護案 | E52: 2012-02-20 | G52: 2012-02-20 | I52: 32857 | M52: 16429 | N52: 12222 | O52: 6111 | P52: 1111 | S52: 556
A55: 7月小計 | P55: =SUM(P52:P54) -> 1111 | Q55: =SUM(Q52:Q54) -> 0 | R55: 0 | S55: 556
A56: 8月
A57: OTC11111090014 | B57: 洪瑞卿 | C57: 台新國際商業銀行股份有限公司 | D57: *台新HDS 3年維護案 | E57: 2012-02-20 | G57: 2012-02-20 | I57: 32857 | M57: 16429 | N57: 12222 | O57: 6111 | P57: 1111 | S57: 556
A58: OTC11111030031 | B58: 林平三 | C58: 大猩猩科技股份有限公司 | D58: *中華電信 HiNet 網路偵查系統建置計畫 | E58: 2012-08-10 | G58: 2012-08-10 | I58: 3120 | M58: 1030 | N58: 3120 | O58: 1030 | P58: 3120 | S58: 1030
A59: OTC11111080024 | B59: 林平三 | C59: 基嘉科技股份有限公司 | D59: *基隆市警局公文檔案管理系統 | E59: 2012-07-31 | G59: 2012-08-31 | I59: 366 | M59: 106 | N59: 366 | O59: 106 | P59: 366 | S59: 106
A62: 8月小計 | P62: =SUM(P57:P61) -> 4597 | Q62: =SUM(Q57:Q61) -> 0 | R62: 0 | S62: 1692
A63: 9月
A64: OTC11111090014 | B64: 洪瑞卿 | C64: 台新國際商業銀行股份有限公司 | D64: *台新HDS 3年維護案 | E64: 2012-02-20 | G64: 2012-02-20 | I64: 32857 | M64: 16429 | N64: 12222 | O64: 6111 | P64: 1111 | S64: 556
A65: OTC11111110008 | B65: 洪瑞卿 | C65: 上海商業儲蓄銀行股份有限公司 | D65: *海銀HDS NSC55維護(第一階段) | E65: 2012-02-29 | G65: 2012-03-02 | I65: 250 | M65: 25 | N65: 250 | O65: 25 | P65: 63 | S65: 6
A66: OTC11111030009 | B66: 張凱 | C66: 中華電信股份有限公司 台灣南區電信分公司 | D66: *CHT-S BCM軟體購案 | E66: 2012-06-29 | G66: 2012-06-29 | I66: 3000 | M66: 450 | N66: 3000 | O66: 450 | P66: 3000 | S66: 450
A68: 9月小計 | P68: =SUM(P64:P67) -> 4174 | Q68: =SUM(Q64:Q67) -> 0 | R68: 0 | S68: 1012
A69: 10月
A70: OTC11111090014 | B70: 洪瑞卿 | C70: 台新國際商業銀行股份有限公司 | D70: *台新HDS 3年維護案 | E70: 2012-02-20 | G70: 2012-02-20 | I70: 32857 | M70: 16429 | N70: 12222 | O70: 6111 | P70: 1111 | S70: 556
A74: 10月小計 | P74: =SUM(P70:P73) -> 1111 | Q74: =SUM(Q70:Q73) -> 0 | R74: 0 | S74: 556
A75: 11月
A76: OTC11111090014 | B76: 洪瑞卿 | C76: 台新國際商業銀行股份有限公司 | D76: *台新HDS 3年維護案 | E76: 2012-02-20 | G76: 2012-02-20 | I76: 32857 | M76: 16429 | N76: 12222 | O76: 6111 | P76: 1111 | S76: 556
A77: OTC11111090002 | B77: 周睿騰 | C77: 寶德能源科技股份有限公司 | D77: *廠房網路規劃建置 | E77: 2012-06-30 | G77: 2012-11-30 | I77: 3000 | M77: 450 | N77: 3000 | O77: 450 | P77: 3000 | S77: 450
A79: 11月小計 | P79: =SUM(P76:P78) -> 4111 | Q79: 0 | R79: 0 | S79: 1006
A80: 12月
A81: OTC11111090014 | B81: 洪瑞卿 | C81: 台新國際商業銀行股份有限公司 | D81: *台新HDS 3年維護案 | E81: 2012-02-20 | G81: 2012-02-20 | I81: 32857 | M81: 16429 | N81: 12222 | O81: 6111 | P81: 1111 | S81: 556
A82: OTC11111110008 | B82: 洪瑞卿 | C82: 上海商業儲蓄銀行股份有限公司 | D82: *海銀HDS NSC55維護(第一階段) | E82: 2012-02-29 | G82: 2012-03-02 | I82: 250 | M82: 25 | N82: 250 | O82: 25 | P82: 63 | S82: 6
A83: OTC11111080026 | B83: 林平三 | C83: 基嘉科技股份有限公司 | D83: *法務部偵查卷宗數位化影像管理系統(第二期) | E83: 2012-12-31 | G83: 2012-12-31 | I83: 9873 | M83: 2863 | N83: 9873 | O83: 2863 | P83: 9873 | S83: 2863
A84: OTC11111110006 | B84: 林平三 | C84: 精誠資訊股份有限公司 | D84: *台電公關室煤體數位化 | E84: 2012-11-30 | G84: 2012-12-31 | I84: 272 | M84: 82 | N84: 272 | O84: 82 | P84: 272 | S84: 82
A85: OTC11112020006 | B85: 林平三 | C85: 美得康科技股份有限公司 | D85: *西園醫院健診中心光碟輸出 | E85: 2012-11-30 | G85: 2012-12-31 | I85: 876 | M85: 219 | N85: 876 | O85: 219 | P85: 876 | S85: 219
A88: 12月小計 | P88: =SUM(P81:P87) -> 12195 | Q88: =SUM(Q81:Q87) -> 0 | R88: =SUM(R81:R87) -> 0 | S88: =SUM(S81:S87) -> 3726
A89: 總計 | P89: =SUM(P26,P33,P39,P50,P55,P62,P68,P74,P79,P88) -> 76810 | Q89: =SUM(Q26,Q33,Q39,Q50,Q55,Q62,Q68,Q74,Q79,Q88) -> 0 | R89: 0 | S89: 17364
